fUST/lending_fUST_20240227
["ID","MTS","AMOUNT","RATE_DAILY","PERIOD"]
[315281344,1708975845209,-500.0,0.00021094,2]
[315281346,1708975845221,-500.0,0.00021094,2]
[315281348,1708975845234,-500.0,0.00021094,2]
[315281350,1708975845246,-213.861249,0.00021094,2]
[315281352,1708975845258,-2208.07,0.00021095,2]
[315281354,1708975845268,-500.0,0.00021095,2]
[315281355,1708975845278,-695.29,0.00021095,2]
[315281356,1708975845288,-590.47,0.00021095,2]
[315281357,1708975845299,-545.98,0.00021095,2]
[315281358,1708975845311,-500.0,0.00021095,2]
[315281359,1708975845324,-500.0,0.00021095,2]
[315281360,1708975845337,-1739.59,0.00021095,2]
[315281361,1708975845348,-515.69,0.00021095,2]
[315281362,1708975845360,-528.46,0.00021095,2]
[315281363,1708975845372,-1000.0,0.00021095,2]
[315281364,1708975845382,-848.65,0.00021095,2]
[315281365,1708975845393,-932.88,0.00021095,2]
[315281366,1708975845403,-4969.98,0.00021095,2]
[315281367,1708975845413,-5726.06,0.00021095,2]
[315281368,1708975845423,-633.71,0.00021095,2]
[315281369,1708975845434,-574.41,0.00021095,2]
[315281370,1708975845445,-500.0,0.00021095,2]
[315281371,1708975845456,-1260.34,0.00021095,2]
[315281372,1708975845466,-2035.13,0.00021095,2]
[315281373,1708975845478,-500.0,0.00021095,2]
[315281374,1708975845490,-2584.76,0.00021095,2]
[315281375,1708975845502,-1514.46,0.00021095,2]
[315281376,1708975845513,-1231.68,0.00021095,2]
[315281377,1708975845527,-1519.51,0.00021095,2]
[315281378,1708975845537,-11291.86,0.00021095,2]
[315281380,1708975845548,-1775.87,0.00021095,2]
[315281383,1708975845559,-11546.08,0.00021095,2]
[315281385,1708975845570,-747.87,0.00021095,2]
[315281387,1708975845580,-1212.5,0.00021095,2]
[315281389,1708975845591,-1040.02,0.00021095,2]
[315281391,1708975845601,-840.97,0.00021095,2]
[315281394,1708975845614,-1064.65,0.00021095,2]
[315281396,1708975845624,-566.39,0.00021095,2]
[315281398,1708975845635,-700.43,0.00021095,2]
[315281400,1708975845646,-500.0,0.00021095,2]
[315281402,1708975845657,-736.08,0.00021095,2]
[315281404,1708975845668,-50000.0,0.00021115,2]
[315281406,1708975845678,-273.840462,0.00021306,2]
[315281408,1708975845689,-392.31496,0.00021337,2]
[315281410,1708975845699,-2208.07,0.00021369,2]
[315281413,1708975845709,-500.0,0.00021369,2]
[315281415,1708975845720,-695.29,0.00021369,2]
[315281417,1708975845730,-590.47,0.00021369,2]
[315281418,1708975845741,-545.98,0.00021369,2]
[315281420,1708975845752,-500.0,0.00021369,2]
[315281422,1708975845763,-500.0,0.00021369,2]
[315281424,1708975845773,-1739.59,0.00021369,2]
[315281426,1708975845785,-515.69,0.00021369,2]
[315281428,1708975845796,-848.65,0.00021369,2]
[315281430,1708975845807,-932.88,0.00021369,2]
[315281432,1708975845818,-4969.98,0.00021369,2]
[315281434,1708975845828,-5726.06,0.00021369,2]
[315281436,1708975845838,-633.71,0.00021369,2]
[315281438,1708975845849,-500.0,0.00021369,2]
[315281441,1708975845861,-1260.34,0.00021369,2]
[315281443,1708975845873,-2035.13,0.00021369,2]
[315281445,1708975845883,-500.0,0.00021369,2]
[315281447,1708975845895,-2584.76,0.00021369,2]
[315281449,1708975845905,-1514.46,0.00021369,2]
[315281451,1708975845916,-1231.68,0.00021369,2]
[315281453,1708975845927,-1519.51,0.00021369,2]
[315281455,1708975845937,-11291.86,0.00021369,2]
[315281457,1708975845948,-1775.87,0.00021369,2]
[315281459,1708975845959,-11546.08,0.00021369,2]
[315281461,1708975845971,-747.87,0.00021369,2]
[315281463,1708975845981,-1212.5,0.00021369,2]
[315281465,1708975845993,-1040.02,0.00021369,2]
[315281468,1708975846004,-840.97,0.00021369,2]
[315281470,1708975846014,-1064.65,0.00021369,2]
[315281473,1708975846027,-566.39,0.00021369,2]
[315281476,1708975846038,-700.43,0.00021369,2]
[315281479,1708975846048,-500.0,0.00021369,2]
[315281482,1708975846059,-736.08,0.00021369,2]
[315281485,1708975846074,-153.0,0.0002137,2]
[315281527,1708975846214,-165.270809,0.00021402,2]
[315281535,1708975846232,-408.087302,0.00021402,2]
[315281538,1708975846242,-170.091036,0.00021402,2]
[315281543,1708975846252,-166.666666,0.00021422,2]
[315281547,1708975846261,-5000.0,0.00021424,2]
[315281550,1708975846271,-5000.0,0.00021425,2]
[315281554,1708975846281,-1000.0,0.00021427,2]
[315281557,1708975846290,-1000.0,0.00021427,2]
[315281561,1708975846301,-1000.0,0.00021427,2]
[315281563,1708975846311,-5000.0,0.00021428,2]
[315281566,1708975846320,-5000.0,0.00021428,2]
[315281569,1708975846330,-5000.0,0.00021428,2]
[315281573,1708975846340,-1000.0,0.00021431,2]
[315281575,1708975846350,-1213.2616781,0.00021478,2]
[315281578,1708975846362,-1633.39020202,0.00021496,2]
[315281582,1708975846372,-170.534859,0.0002153,2]
[315281585,1708975846382,-170.534859,0.0002153,2]
[315281587,1708975846391,-151.0,0.0002153,2]
[315281590,1708975846401,-956.542313,0.0002153,2]
[315281593,1708975846411,-956.542313,0.0002153,2]
[315281597,1708975846420,-50000.0,0.00021533,2]
[315281600,1708975846429,-151.0,0.00021533,2]
[315281603,1708975846439,-50000.0,0.00021543,2]
[315281604,1708975846448,-50000.0,0.00021544,2]
[315281608,1708975846458,-273.840462,0.00021573,2]
[315281611,1708975846468,-392.31496,0.00021604,2]
[315281614,1708975846478,-2208.07,0.00021643,2]
[315281617,1708975846487,-199.0481273,0.00021643,2]
[315281619,1708975846499,-695.29,0.00021643,2]
[315281622,1708975846510,-590.47,0.00021643,2]
[315281625,1708975846520,-545.98,0.00021643,2]
[315281627,1708975846530,-500.0,0.00021643,2]
[315281629,1708975846540,-500.0,0.00021643,2]
[315281631,1708975846549,-1739.59,0.00021643,2]
[315281633,1708975846558,-515.69,0.00021643,2]
[315281635,1708975846567,-848.65,0.00021643,2]
[315281637,1708975846576,-932.88,0.00021643,2]
[315281639,1708975846586,-4969.98,0.00021643,2]
[315281641,1708975846595,-5726.06,0.00021643,2]
[315281643,1708975846605,-633.71,0.00021643,2]
[315281645,1708975846614,-500.0,0.00021643,2]
[315281646,1708975846623,-1260.34,0.00021643,2]
[315281648,1708975846632,-2035.13,0.00021643,2]
[315281650,1708975846641,-500.0,0.00021643,2]
[315281652,1708975846650,-2584.76,0.00021643,2]
[315281654,1708975846660,-1514.46,0.00021643,2]
[315281656,1708975846669,-1231.68,0.00021643,2]
[315281658,1708975846678,-954.47944217,0.00021643,2]
[315281667,1708975846756,-565.03055783,0.00021643,2]
[315281669,1708975846765,-11291.86,0.00021643,2]
[315281671,1708975846775,-1640.34230028,0.00021643,2]
[315281725,1708975847320,-1013.29,0.00019178,2]
[315281727,1708975847329,-1252.63,0.00019178,2]
[315281729,1708975847339,-500.0,0.00019178,2]
[315281731,1708975847348,-500.0,0.00019178,2]
[315281733,1708975847364,-500.0,0.00019178,2]
[315281735,1708975847374,-1013.29,0.00019452,2]
[315281737,1708975847383,-1252.63,0.00019452,2]
[315281739,1708975847393,-500.0,0.00019452,2]
[315281741,1708975847403,-500.0,0.00019452,2]
[315281743,1708975847412,-500.0,0.00019452,2]
[315281745,1708975847421,-1013.29,0.00019726,2]
[315281747,1708975847430,-1252.63,0.00019726,2]
[315281749,1708975847439,-500.0,0.00019726,2]
[315281751,1708975847448,-500.0,0.00019726,2]
[315281753,1708975847457,-1013.29,0.0002,2]
[315281755,1708975847467,-1252.63,0.0002,2]
[315281756,1708975847477,-500.0,0.0002,2]
[315281759,1708975847489,-500.0,0.0002,2]
[315281761,1708975847498,-1013.29,0.00020273,2]
[315281763,1708975847507,-1252.63,0.00020273,2]
[315281764,1708975847517,-500.0,0.00020273,2]
[315281767,1708975847527,-500.0,0.00020273,2]
[315281768,1708975847536,-1013.29,0.00020547,2]
[315281770,1708975847545,-1252.63,0.00020547,2]
[315281772,1708975847554,-153.0,0.00020767,2]
[315281775,1708975847564,-1013.29,0.00020821,2]
[315281776,1708975847574,-1252.63,0.00020821,2]
[315281779,1708975847586,-1013.29,0.00021095,2]
[315281781,1708975847595,-1252.63,0.00021095,2]
[315281782,1708975847605,-1013.29,0.00021369,2]
[315281784,1708975847614,-1252.63,0.00021369,2]
[315281786,1708975847624,-135.52769972,0.00021643,2]
[315281788,1708975847634,-11546.08,0.00021643,2]
[315281790,1708975847643,-747.87,0.00021643,2]
[315281792,1708975847653,-1212.5,0.00021643,2]
[315281794,1708975847662,-1040.02,0.00021643,2]
[315281796,1708975847673,-840.97,0.00021643,2]
[315281798,1708975847683,-1064.65,0.00021643,2]
[315281800,1708975847693,-566.39,0.00021643,2]
[315281802,1708975847702,-700.43,0.00021643,2]
[315281803,1708975847712,-500.0,0.00021643,2]
[315281805,1708975847721,-736.08,0.00021643,2]
[315281806,1708975847731,-1013.29,0.00021643,2]
[315281808,1708975847740,-1252.63,0.00021643,2]
[315281809,1708975847749,-408.087302,0.00021669,2]
[315281811,1708975847759,-20131.42551998,0.00021679,2]
[315281813,1708975847769,-170.534859,0.000217,2]
[315281814,1708975847778,-170.534859,0.000217,2]
[315281816,1708975847788,-151.0,0.000217,2]
[315281818,1708975847798,-956.542313,0.000217,2]
[315281819,1708975847807,-956.542313,0.000217,2]
[315281821,1708975847817,-15829.71648693,0.000217,2]
[315281823,1708975847826,-153.0,0.00021726,2]
[315281824,1708975847836,-153.0,0.00021726,2]
[315281826,1708975847845,-153.0,0.00021726,2]
[315281828,1708975847854,-153.0,0.00021726,2]
[315281829,1708975847864,-455.1304468,0.00021726,2]
[315281831,1708975847873,-153.0,0.00021726,2]
[315281832,1708975847883,-153.0,0.00021726,2]
[315281834,1708975847893,-153.0,0.00021726,2]
[315281836,1708975847903,-153.0,0.00021726,2]
[315281837,1708975847912,-306.0,0.00021726,2]
[315281839,1708975847921,-200.5826354,0.00021726,2]
[315281841,1708975847931,-153.0,0.00021726,2]
[315281843,1708975847940,-153.0,0.00021726,2]
[315281844,1708975847949,-153.0,0.00021726,2]
[315281846,1708975847959,-200.5826354,0.00021726,2]
[315281847,1708975847968,-153.0,0.00021726,2]
[315281849,1708975847977,-153.0,0.00021726,2]
[315281851,1708975847987,-200.5826354,0.00021726,2]
[315281852,1708975847996,-153.0,0.00021726,2]
[315281854,1708975848005,-200.5826354,0.00021726,2]
[315281856,1708975848015,-153.0,0.00021726,2]
[315281857,1708975848026,-153.0,0.00021726,2]
[315281859,1708975848035,-153.0,0.00021726,2]
[315281860,1708975848045,-153.0,0.00021726,2]
[315281862,1708975848054,-153.0,0.00021726,2]
[315281864,1708975848065,-200.5826354,0.00021726,2]
[315281866,1708975848075,-153.0,0.00021753,2]
[315281867,1708975848083,-153.0,0.00021781,2]
[315281869,1708975848093,-153.0,0.00021781,2]
[315281871,1708975848102,-153.0,0.00021781,2]
[315281872,1708975848112,-153.0,0.00021781,2]
[315281874,1708975848122,-193.983692,0.000218,2]
[315281876,1708975848131,-310.373905,0.000218,2]
[315281877,1708975848141,-1565.304304,0.000218,2]
[315281879,1708975848150,-612.612683,0.00021815,2]
[315281881,1708975848160,-151.14207355,0.00021836,7]
[315281882,1708975848169,-273.840462,0.00021839,2]
[315281884,1708975848178,-392.31496,0.00021871,2]
[315281886,1708975848187,-110000.0,0.0002188,2]
[315281888,1708975848196,-2208.07,0.00021917,2]
[315281889,1708975848206,-695.29,0.00021917,2]
[315281891,1708975848215,-590.47,0.00021917,2]
[315281893,1708975848224,-545.98,0.00021917,2]
[315281894,1708975848234,-500.0,0.00021917,2]
[315281896,1708975848243,-500.0,0.00021917,2]
[315281898,1708975848252,-1739.59,0.00021917,2]
[315281899,1708975848261,-515.69,0.00021917,2]
[315281901,1708975848270,-1000.0,0.00021917,5]
[315281903,1708975848279,-1000.0,0.00021917,5]
[315281904,1708975848288,-233.44946123,0.00021917,5]
[315281906,1708975848297,-848.65,0.00021917,2]
[315281908,1708975848307,-4969.98,0.00021917,2]
[315281909,1708975848316,-5726.06,0.00021917,2]
[315281911,1708975848325,-633.71,0.00021917,2]
[315281912,1708975848335,-599.73406629,0.00021917,2]
[315281914,1708975848345,-1260.34,0.00021917,2]
[315281915,1708975848354,-2035.13,0.00021917,2]
[315281917,1708975848367,-500.0,0.00021917,2]
[315281919,1708975848378,-2584.76,0.00021917,2]
[315281921,1708975848387,-1514.46,0.00021917,2]
[315281922,1708975848397,-1231.68,0.00021917,2]
[315281924,1708975848407,-151.0,0.00021917,2]
[315281926,1708975848416,-1519.51,0.00021917,2]
[315281927,1708975848426,-11291.86,0.00021917,2]
[315281929,1708975848436,-1775.87,0.00021917,2]
[315281931,1708975848447,-11546.08,0.00021917,2]
[315281933,1708975848457,-747.87,0.00021917,2]
[315281934,1708975848468,-1212.5,0.00021917,2]
[315281936,1708975848478,-1040.02,0.00021917,2]
[315281938,1708975848488,-840.97,0.00021917,2]
[315281939,1708975848498,-1064.65,0.00021917,2]
[315281941,1708975848507,-566.39,0.00021917,2]
[315281943,1708975848517,-700.43,0.00021917,2]
[315281945,1708975848527,-500.0,0.00021917,2]
[315281946,1708975848537,-736.08,0.00021917,2]
[315281948,1708975848547,-1013.29,0.00021917,2]
[315281950,1708975848556,-1252.63,0.00021917,2]
[315281952,1708975848566,-46890.7969973,0.00021918,2]
[315281953,1708975848575,-10000.0,0.00021918,2]
[315281955,1708975848585,-883.267139,0.00021918,2]
[315281957,1708975848594,-694.63465149,0.00021918,2]
[315281959,1708975848603,-155.0,0.00021918,2]
[315281960,1708975848613,-408.087302,0.00021937,2]
[315281962,1708975848623,-170.091036,0.00021937,2]
[315281964,1708975848632,-621.76461331,0.00021937,2]
[315281965,1708975848641,-75972.96350737,0.00021999,2]
[315281967,1708975848650,-160.0,0.00021999,2]
[315281969,1708975848659,-160.0,0.00021999,2]
[315281971,1708975848668,-160.0,0.00021999,2]
[315281972,1708975848678,-423.08,0.00022,14]
[315281974,1708975848687,-627.99611648,0.00022,2]
[315281976,1708975848696,-855.98553574,0.00022,4]
[315281978,1708975848705,-495836.31596253,0.00022,7]
[315281979,1708975848714,-5671.58839017,0.00022,2]
[315281981,1708975848724,-230.17,0.00022,2]
[315281983,1708975848732,-540.313619,0.00022,3]
[315281985,1708975848741,-1000.0,0.00022,3]
[315281986,1708975848750,-3445.08257329,0.00022,2]
[315281988,1708975848760,-190.39982719,0.00022,3]
[315281998,1708975848875,-1121.32025338,0.00022,3]
[315282000,1708975848884,-971.42156184,0.00022,2]
[315282002,1708975848894,-184.35160731,0.00022,3]
[315282004,1708975848903,-299.60008719,0.00022,2]
[315282005,1708975848911,-1000.0,0.00022,3]
[315282007,1708975848920,-243.87899137,0.00022,3]
[315282009,1708975848930,-3381.43956491,0.00022,2]
[315282011,1708975848938,-170.534859,0.00022,2]
[315282012,1708975848948,-170.534859,0.00022,2]
[315282014,1708975848956,-170.534859,0.00022,2]
[315282016,1708975848965,-156.4161566,0.00022,3]
[315282018,1708975848974,-170.534859,0.00022,2]
[315282019,1708975848984,-170.534859,0.00022,2]
[315282021,1708975848993,-170.534859,0.00022,2]
[315282023,1708975849002,-1000.0,0.00022,3]
[315282025,1708975849011,-2142.96605347,0.00022,4]
[315282026,1708975849022,-10000.0,0.00022,4]
[315282028,1708975849031,-14003.19215913,0.00022,4]
[315282030,1708975849040,-646.53325938,0.00022,2]
[315282032,1708975849050,-956.542313,0.00022,2]
[315282034,1708975849060,-956.542313,0.00022,2]
[315282035,1708975849072,-956.542313,0.00022,2]
[315282037,1708975849081,-956.542313,0.00022,2]
[315282039,1708975849090,-956.542313,0.00022,2]
[315282041,1708975849100,-956.542313,0.00022,2]
[315282042,1708975849112,-982.59242993,0.00022,3]
[315282044,1708975849121,-151.0,0.00022,2]
[315282046,1708975849130,-872.0643,0.00022,2]
[315282048,1708975849140,-2360.206875,0.00022,2]
[315282050,1708975849150,-302.0,0.00022002,2]
[315282051,1708975849159,-301.0,0.00022002,2]
[315282053,1708975849168,-500.0,0.00022002,2]
[315282055,1708975849177,-500.0,0.00022002,2]
[315282057,1708975849187,-403.0,0.00022002,2]
[315282058,1708975849197,-500.0,0.00022027,2]
[315282060,1708975849207,-310.373905,0.00022072,2]
[315282062,1708975849216,-1565.304304,0.00022072,2]
[315282064,1708975849226,-612.612683,0.00022088,2]
[315282065,1708975849235,-273.840462,0.00022105,2]
[315282067,1708975849245,-500.0,0.00022137,2]
[315282069,1708975849254,-392.31496,0.00022138,2]
[315282071,1708975849263,-50000.0,0.00022177,2]
[315282073,1708975849272,-50000.0,0.00022185,2]
[315282074,1708975849282,-50000.0,0.00022187,2]
[315282076,1708975849290,-50000.0,0.00022189,2]
[315282078,1708975849299,-170.534859,0.00022189,2]
[315282080,1708975849308,-170.534859,0.00022189,2]
[315282081,1708975849317,-956.542313,0.00022189,2]
[315282083,1708975849326,-956.542313,0.00022189,2]
[315282085,1708975849335,-151.0,0.00022189,2]
[315282087,1708975849344,-2208.07,0.00022191,2]
[315282088,1708975849353,-695.29,0.00022191,2]
[315282090,1708975849365,-590.47,0.00022191,2]
[315282092,1708975849374,-545.98,0.00022191,2]
[315282094,1708975849383,-500.0,0.00022191,2]
[315282096,1708975849392,-500.0,0.00022191,2]
[315282097,1708975849402,-1739.59,0.00022191,2]
[315282099,1708975849412,-515.69,0.00022191,2]
[315282101,1708975849421,-848.65,0.00022191,2]
[315282103,1708975849431,-4969.98,0.00022191,2]
[315282105,1708975849440,-5726.06,0.00022191,2]
[315282106,1708975849448,-633.71,0.00022191,2]
[315282108,1708975849458,-1260.34,0.00022191,2]
[315282110,1708975849467,-2035.13,0.00022191,2]
[315282112,1708975849477,-500.0,0.00022191,2]
[315282113,1708975849486,-2584.76,0.00022191,2]
[315282115,1708975849496,-1514.46,0.00022191,2]
[315282117,1708975849505,-1231.68,0.00022191,2]
[315282119,1708975849515,-1519.51,0.00022191,2]
[315282121,1708975849524,-11291.86,0.00022191,2]
[315282122,1708975849533,-1775.87,0.00022191,2]
[315282124,1708975849543,-11546.08,0.00022191,2]
[315282126,1708975849552,-747.87,0.00022191,2]
[315282128,1708975849561,-1212.5,0.00022191,2]
[315282130,1708975849570,-1040.02,0.00022191,2]
[315282131,1708975849580,-840.97,0.00022191,2]
[315282133,1708975849589,-1064.65,0.00022191,2]
[315282135,1708975849599,-566.39,0.00022191,2]
[315282137,1708975849607,-700.43,0.00022191,2]
[315282138,1708975849616,-500.0,0.00022191,2]
[315282140,1708975849626,-736.08,0.00022191,2]
[315282142,1708975849636,-1013.29,0.00022191,2]
[315282144,1708975849645,-1252.63,0.00022191,2]
[315282146,1708975849654,-408.087302,0.00022204,2]
[315282148,1708975849663,-500.0,0.00022246,2]
[315282149,1708975849673,-20068.37468372,0.00022282,2]
[315282151,1708975849683,-151.14207355,0.00022282,4]
[315282153,1708975849691,-310.373905,0.00022345,2]
[315282155,1708975849701,-1565.304304,0.00022345,2]
[315282157,1708975849711,-500.0,0.00022356,2]
[315282158,1708975849719,-612.612683,0.00022361,2]
[315282160,1708975849728,-273.840462,0.00022371,2]
[315282162,1708975849737,-392.31496,0.00022404,2]
[315282164,1708975849746,-2208.07,0.00022465,2]
[315282166,1708975849755,-695.29,0.00022465,2]
[315282167,1708975849765,-590.47,0.00022465,2]
[315282169,1708975849774,-545.98,0.00022465,2]
[315282171,1708975849783,-500.0,0.00022465,2]
[315282173,1708975849792,-500.0,0.00022465,2]
[315282175,1708975849802,-1739.59,0.00022465,2]
[315282177,1708975849813,-515.69,0.00022465,2]
[315282179,1708975849823,-848.65,0.00022465,2]
[315282180,1708975849832,-4969.98,0.00022465,2]
[315282182,1708975849842,-5726.06,0.00022465,2]
[315282184,1708975849852,-633.71,0.00022465,2]
[315282186,1708975849862,-1260.34,0.00022465,2]
[315282188,1708975849872,-2035.13,0.00022465,2]
[315282189,1708975849882,-500.0,0.00022465,2]
[315282191,1708975849892,-2584.76,0.00022465,2]
[315282193,1708975849901,-1514.46,0.00022465,2]
[315282195,1708975849910,-1231.68,0.00022465,2]
[315282197,1708975849920,-1519.51,0.00022465,2]
[315282199,1708975849930,-1775.87,0.00022465,2]
[315282200,1708975849939,-11291.86,0.00022465,2]
[315282202,1708975849948,-11546.08,0.00022465,2]
[315282204,1708975849957,-747.87,0.00022465,2]
[315282206,1708975849966,-1212.5,0.00022465,2]
[315282208,1708975849976,-1040.02,0.00022465,2]
[315282209,1708975849985,-840.97,0.00022465,2]
[315282211,1708975849995,-1064.65,0.00022465,2]
[315282213,1708975850004,-566.39,0.00022465,2]
[315282215,1708975850013,-700.43,0.00022465,2]
[315282217,1708975850026,-500.0,0.00022465,2]
[315282219,1708975850035,-736.08,0.00022465,2]
[315282221,1708975850044,-1013.29,0.00022465,2]
[315282223,1708975850054,-1252.63,0.00022465,2]
[315282225,1708975850069,-500.0,0.00022466,2]
[315282227,1708975850078,-408.087302,0.00022472,2]
[315282229,1708975850088,-170.091036,0.00022472,2]
[315282231,1708975850097,-1000.0,0.000225,7]
[315282233,1708975850108,-300.0,0.000225,10]
[315282235,1708975850119,-153.0,0.00022548,2]
[315282237,1708975850129,-153.0,0.00022548,2]
[315282238,1708975850141,-344.8074923,0.00022548,2]
[315282240,1708975850151,-153.0,0.00022548,2]
[315282242,1708975850161,-153.0,0.00022548,2]
[315282245,1708975850171,-500.0,0.00022576,2]
[315282246,1708975850181,-200.5826354,0.00022603,2]
[315282248,1708975850191,-306.0,0.00022603,2]
[315282251,1708975850200,-153.553935,0.00022603,2]
[315282252,1708975850209,-200.5826354,0.00022603,2]
[315282254,1708975850220,-200.5826354,0.00022603,2]
[315282256,1708975850229,-401.1395907,0.00022603,2]
[315282258,1708975850239,-310.373905,0.00022617,2]
[315282260,1708975850248,-1565.304304,0.00022617,2]
[315282262,1708975850257,-1213.2616781,0.00022629,2]
[315282264,1708975850266,-612.612683,0.00022633,2]
[315282266,1708975850276,-500.0,0.00022685,2]
[315282268,1708975850286,-151.14207355,0.00022737,2]
[315282270,1708975850296,-2208.07,0.00022739,2]
[315282272,1708975850305,-695.29,0.00022739,2]
[315282274,1708975850315,-590.47,0.00022739,2]
[315282276,1708975850325,-545.98,0.00022739,2]
[315282278,1708975850335,-500.0,0.00022739,2]
[315282279,1708975850344,-500.0,0.00022739,2]
[315282280,1708975850354,-1739.59,0.00022739,2]
[315282281,1708975850365,-515.69,0.00022739,2]
[315282282,1708975850375,-848.65,0.00022739,2]
[315282283,1708975850384,-4969.98,0.00022739,2]
[315282284,1708975850394,-5726.06,0.00022739,2]
[315282285,1708975850403,-633.71,0.00022739,2]
[315282286,1708975850412,-1260.34,0.00022739,2]
[315282287,1708975850422,-2035.13,0.00022739,2]
[315282288,1708975850432,-500.0,0.00022739,2]
[315282289,1708975850442,-2584.76,0.00022739,2]
[315282290,1708975850452,-1514.46,0.00022739,2]
[315282291,1708975850464,-1231.68,0.00022739,2]
[315282292,1708975850475,-1519.51,0.00022739,2]
[315282293,1708975850486,-1775.87,0.00022739,2]
[315282294,1708975850497,-11291.86,0.00022739,2]
[315282295,1708975850509,-11546.08,0.00022739,2]
[315282296,1708975850519,-747.87,0.00022739,2]
[315282297,1708975850530,-1212.5,0.00022739,2]
[315282298,1708975850540,-1040.02,0.00022739,2]
[315282299,1708975850550,-840.97,0.00022739,2]
[315282300,1708975850559,-1064.65,0.00022739,2]
[315282301,1708975850568,-566.39,0.00022739,2]
[315282302,1708975850578,-700.43,0.00022739,2]
[315282303,1708975850587,-500.0,0.00022739,2]
[315282304,1708975850596,-736.08,0.00022739,2]
[315282305,1708975850605,-1013.29,0.00022739,2]
[315282306,1708975850616,-1252.63,0.00022739,2]
[315282307,1708975850626,-500.0,0.00022795,2]
[315282308,1708975850635,-193.983692,0.0002289,2]
[315282309,1708975850644,-310.373905,0.0002289,2]
[315282310,1708975850654,-1565.304304,0.0002289,2]
[315282311,1708975850663,-500.0,0.00022905,2]
[315282312,1708975850674,-612.612683,0.00022906,2]
[315282313,1708975850683,-160.0,0.00022999,2]
[315282314,1708975850693,-253.26527282,0.00022999,2]
[315282315,1708975850702,-160.0,0.00022999,2]
[315282316,1708975850712,-51896.07402033,0.00023,2]
[315282317,1708975850721,-1000.0,0.00023,23]
[315282318,1708975850732,-170.534859,0.00023,2]
[315282319,1708975850742,-170.534859,0.00023,2]
[315282320,1708975850751,-170.534859,0.00023,2]
[315282321,1708975850761,-170.534859,0.00023,2]
[315282322,1708975850771,-170.534859,0.00023,2]
[315282323,1708975850782,-170.534855,0.00023,2]
[315282324,1708975850792,-211.48783171,0.00023,4]
[315282327,1708975850847,-500.0,0.00020547,2]
[315282328,1708975850858,-1930.51216829,0.00023,4]
[315282330,1708975850871,-10000.0,0.00023,4]
[315282331,1708975850881,-14003.0,0.00023,4]
[315282332,1708975850891,-956.542313,0.00023,2]
[315282334,1708975850902,-956.542313,0.00023,2]
[315282336,1708975850912,-956.542313,0.00023,2]
[315282338,1708975850921,-956.54231533,0.00023,2]
[315282341,1708975850932,-231.161232,0.00023,2]
[315282343,1708975850941,-2208.07,0.00023013,2]
[315282345,1708975850951,-695.29,0.00023013,2]
[315282347,1708975850961,-590.47,0.00023013,2]
[315282349,1708975850971,-545.98,0.00023013,2]
[315282350,1708975850981,-500.0,0.00023013,2]
[315282352,1708975850991,-437.5339547,0.00023013,2]
[315282355,1708975851001,-1739.59,0.00023013,2]
[315282357,1708975851010,-515.69,0.00023013,2]
[315282359,1708975851023,-848.65,0.00023013,2]
[315282361,1708975851033,-4969.98,0.00023013,2]